Cogmind - Beta 13 @@@ ROGUE MODE // 2024.07.02 @ 16:25:47 Player: komunre Result: Destroyed by S-10 Pest with Light Assault Rifle Performance ------------- Evolutions (0) 0 Regions Visited (1) 200 Robots Destroyed (15) 75 Value Destroyed (309) 309 Prototype IDs (0) 0 Alien Tech Used (0) 0 Bonus (0) 0 TOTAL SCORE: 584 Bonus ------- None Cogmind --------- Core Integrity 0/250 Matter 275/300 Energy 308/350 System Corruption 1% Temperature Cool (0) Movement Treading (320) Ox2 Location -10/Materials Parts ------- > --- POWER (1) -------- (None) > --- PROPULSION (2) --- Light Treads > --- UTILITY (2) ------ High-capacity Storage Unit High-capacity Battery > --- WEAPON (2) ------- Small Laser > --- INVENTORY (20) --- Light Ion Engine Light Ion Engine Light Ion Engine Light Ion Engine Aluminum Leg Aluminum Leg Aluminum Leg Heat Sink Small Storage Unit Small Matter Pod (43) Sensor Array Sensor Array Signal Interpreter Small Laser Peak State ------------ > --- POWER ------------ Light Nuclear Core > --- PROPULSION ------- Light Treads Light Treads > --- UTILITY ---------- High-capacity Storage Unit Sensor Array > --- WEAPON ----------- Light Assault Rifle Light Assault Rifle > --- INVENTORY -------- Light Ion Engine Light Ion Engine Light Ion Engine Aluminum Leg Aluminum Leg Aluminum Leg Flight Unit Flight Unit Heat Sink Small Storage Unit Signal Interpreter Small Laser Small Laser Mining Laser [Rating: 10] Favorites ----------- Power Light Ion Engine Engine Light Ion Engine Power Core Light Nuclear Core Propulsion Light Treads Treads Light Treads Leg Aluminum Leg Wheel Compact Wheel Flight Unit Flight Unit Utility High-capacity Storage Unit Device Sensor Array Storage High-capacity Storage Unit Weapon Light Assault Rifle Energy Gun Small Laser Ballistic Gun Light Assault Rifle Special Weapon Mining Laser Build | -11 -10 ------- Run | Yrd Mat Slots Evolved . | . . Power . | . . Propulsion . | . . Utility . | . . Weapon . | . . Parts Attached 38 | 9 29 Power 4 | 1 3 Engine 3 | 1 2 Core 1 | . 1 Reactor . | . . Propulsion 12 | 5 7 Treads 5 | 2 3 Leg 2 | . 2 Wheel 3 | 3 . Hover . | . . Flight 2 | . 2 Utility 5 | 1 4 Device 2 | . 2 Storage 3 | 1 2 Processor . | . . Hackware . | . . Protection . | . . Artifact . | . . Weapon 17 | 2 15 Energy Gun 3 | 1 2 Energy Cannon . | . . Ballistic Gun 8 | 1 7 Ballistic Cannon . | . . Launcher . | . . Special Weapon 6 | . 6 Impact Weapon . | . . Slashing Weapon . | . . Piercing Weapon . | . . Special Melee Weapon . | . . Unidentified Prototypes . | . . Corrupted Parts 1 | . 1 System Corruption 1 | . 1 Parts Lost 13 | . 13 Power 3 | . 3 Propulsion 5 | . 5 Utility . | . . Weapon 5 | . 5 Highest Loss Streak 6 | . 6 To Critical Strikes . | . . Average Slot Usage (%) 95 | . 95 Engine 6 | . 6 Core 4 | . 4 Treads 13 | . 13 Leg 5 | . 5 Wheel 8 | . 8 Device 6 | . 6 Storage 21 | . 21 Energy Gun 10 | . 10 Ballistic Gun 16 | . 16 Special Weapon 1 | . 1 Naked Turns . | . . Heaviest Build 51 | 11 51 Greatest Support 40 | 40 40 Greatest Overweight (x) 2 | . 2 Average Overweight (x) . | . . Largest Inventory Capacity 20 | 8 20 Average Capacity 17 | 6 17 Most Carried 18 | 6 18 Average Carried 12 | 4 13 Final Capacity 20 | 8 20 Final Carried 14 | 6 14 Class Distribution -------------------- 100% | Mutant Dominant Class ---------------- Mutant | -10/Materials Resources | -11 -10 ----------- Run | Yrd Mat Matter Collected 631 | 257 374 Remotely . | . . Salvage Created 475 | . 475 Parts 29 | . 29 Haulers Intercepted . | . . Recyclers Shooed 2 | . 2 Parts Field Recycled . | . . Retrieved Matter . | . . Parts Self-Destructed . | . . Prevented . | . . Kills | -11 -10 ------- Run | Yrd Mat Combat Hostiles Destroyed 12 | . 12 Guns 12 | . 12 Classes Destroyed 4 | . 4 Worker 2 | . 2 Recycler 1 | . 1 Swarmer 5 | . 5 Grunt 7 | . 7 Best Kill Streak 2 | . 2 Combat Bots Only 2 | . 2 Max Kills in Single Turn 2 | . 2 Gunslinging 1 | . 1 Exploded . | . . Melee . | . . Uniques/NPCs Destroyed . | . . Combat | -11 -10 -------- Run | Yrd Mat Hostile Shots Fired 166 | . 166 Missed 45 | . 45 Damage Taken 1355 | . 1355 Core 255 | . 255 Absorbed by Shields . | . . Core Remaining (%) 100 | 100 . Volleys Fired 91 | . 91 Largest 2 | . 2 Hottest 120 | . 120 Shots Fired 150 | . 150 Gun 140 | . 140 Cannon . | . . Launcher . | . . Special 10 | . 10 Kinetic 98 | . 98 Thermal 32 | . 32 Explosive . | . . Electromagnetic 20 | . 20 Robot Hit Streak 8 | . 8 Robot Miss Streak 4 | . 4 Penetration Max . | . . Secondary Targets 1 | . 1 Max Gunslinging Chain 1 | . 1 Shots Hit Robots 83 | . 83 Core Hits 33 | . 33 Critical Kills . | . . Critical Parts Destroyed . | . . Critical Strikes . | . . Melee Attacks . | . . Impact . | . . Slashing . | . . Piercing . | . . Sneak Attacks . | . . Combat Hostiles . | . . Follow-up Attacks . | . . Damage Inflicted 914 | . 914 Guns 803 | . 803 Cannons . | . . Explosions 84 | . 84 Melee . | . . Ramming 3 | . 3 Kinetic 495 | . 495 Thermal 250 | . 250 Explosive . | . . Electromagnetic 166 | . 166 Impact . | . . Slashing . | . . Piercing . | . . Highest Corruption 1 | . 1 Average Corruption 1 | . 1 Corruption Purged . | . . Corruption Blocked . | . . Overload Shots . | . . Overflow Damage 14 | . 14 Projectiles . | . . Explosions 14 | . 14 Melee . | . . Knockbacks . | . . Impact . | . . Kinetic . | . . Secondary . | . . Self-Inflicted Damage 26 | . 26 Shots 1 | . 1 Rammed 1 | . 1 Targets Rammed 1 | . 1 Kicked . | . . Crushed . | . . Highest Temperature 168 | . 168 Average Temperature 43 | . 43 Received Heat Transfer 534 | . 534 Siege Activations . | . . Robots Corrupted . | . . Combat Hostiles . | . . Parts Fried . | . . Impact Corruptions . | . . Robots Melted . | . . Combat Hostiles . | . . Parts Melted . | . . Heat Transferred 475 | . 475 Parts Sabotaged . | . . Parts Stolen . | . . Parts Stripped . | . . Power Chain Reactions 2 | . 2 Alert | -11 -10 ------- Run | Yrd Mat Peak Influence 167 | . 167 Initial . | . . Average 56 | . 60 Maximum Alert Level . | . . Low Security (%) 100 | 100 100 Level 1 . | . . Level 2 . | . . Level 3 . | . . Level 4 . | . . Level 5 . | . . High Security . | . . Max Security . | . . Squads Dispatched 2 | . 2 Investigation 2 | . 2 Extermination . | . . Reinforcement . | . . Assault . | . . Garrison . | . . Intercept . | . . Searches Triggered . | . . Construction Impeded . | . . Haulers Reinforced . | . . Active Scanning Responses . | . . Cargo Convoy Interrupts . | . . Stealth | -11 -10 --------- Run | Yrd Mat Distress Signals 1 | . 1 Communications Jammed . | . . Distress Signals . | . . Times Spotted 23 | . 23 Peak Tracking Total 4 | . 4 Tactical Retreats 2 | . 2 Traps | -11 -10 ------- Run | Yrd Mat Traps Triggered 3 | . 3 Indirectly . | . . Trap Hack Attempts . | . . Triggered . | . . Disarmed . | . . Reprogrammed . | . . Reused . | . . Traps Extracted . | . . Installed . | . . Triggered . | . . Machines | -11 -10 ---------- Run | Yrd Mat Machines Disabled . | . . Max in Single Turn . | . . Machines Repaired . | . . Machines Dismantled . | . . Machines Sabotaged . | . . Overloaded Fab Kills . | . . Hacking | -11 -10 --------- Run | Yrd Mat Machines Accessed 1 | . 1 Terminals . | . . Fabricators . | . . Repair Stations 1 | . 1 Recycling Units . | . . Scanalyzers . | . . Garrison Access . | . . Total Hacks 3 | . 3 Successful 1 | . 1 Failed 2 | . 2 Catastrophic . | . . Database Lockouts . | . . Manual . | . . Terminals . | . . Fabricators . | . . Repair Stations 3 | . 3 Recycling Units . | . . Scanalyzers . | . . Garrison Access . | . . Terminal Hacks . | . . Fabricator Hacks . | . . Repair Station Hacks 1 | . 1 Scan Component 1 | . 1 Recycling Unit Hacks . | . . Scanalyzer . | . . Garrison Access Hacks . | . . Unauthorized Hacks . | . . Terminals . | . . Fabricators . | . . Repair Stations . | . . Recycling Units . | . . Scanalyzers . | . . Garrison Access . | . . Data Cores Recovered . | . . Used . | . . Hacking Detections 1 | . 1 Full Trace Events 1 | . 1 Feedback Events . | . . Feedback Blocked . | . . Robot Schematics Acquired . | . . Robots Built . | . . Authchips . | . . Time . | . . Total Robot Build Rating . | . . Part Schematics Acquired . | . . Parts Built . | . . Authchips . | . . Time . | . . Total Part Build Rating . | . . Parts Repaired . | . . Time . | . . Parts Recycled . | . . Recycled Matter . | . . Retrieved Matter . | . . Retrieved Components . | . . Parts Scanalyzed . | . . Part Schematics Acquired . | . . Parts Damaged . | . . Bothacking | -11 -10 ------------ Run | Yrd Mat Used RIF Installer . | . . Robots Hacked . | . . Non-combat . | . . Combat . | . . Robot Hacks Applied . | . . Relay Couplers Released . | . . Fabnet Peak Effective % . | . . Robots Rewired . | . . Allies Hacked . | . . Hacks Repelled . | . . Allies | -11 -10 -------- Run | Yrd Mat Total Allies . | . . Largest Group . | . . Highest-Rated Group . | . . Highest-Rated Ally . | . . Total Orders . | . . Ally Attacks . | . . Total Damage . | . . Kills . | . . Allies Corrupted . | . . Allies Melted . | . . Intel | -11 -10 ------- Run | Yrd Mat Robot Analysis Total . | . . Derelict Logs Recovered . | . . Drone Launches . | . . Drone Recoveries . | . . Exploration | -11 -10 ------------- Run | Yrd Mat Turns Passed 1409 | 91 1318 Spaces Moved 674 | 71 603 Core 2 | 2 . Treads 192 | 7 185 Legs 96 | . 96 Wheels 384 | 62 322 Hover . | . . Flight . | . . Fastest Speed 50 | 50 90 Average Speed 158 | 97 165 Slowest Speed 260 | 160 260 Overloaded Moves . | . . Propulsion Burnouts . | . . Robots Hopped . | . . Cave-ins Triggered . | . . Exploration Rate (%) 29 | 4 54 Regions Visited 1 Branch Regions . Pre-discovered Areas . | . . Known Exits Taken . | . . Unknown Exits Taken 1 | 1 . Scrap Searched . | . . Spaces Dug 7 | . 7 Terrain Destroyed 21 | . 21 Melee . | . . Projectile 9 | . 9 AOE 12 | . 12 Terrain Rammed . | . . Walls Destroyed . | . . Machines Disabled . | . . Actions | -11 -10 --------- Run | Yrd Mat Total 857 | 91 766 Wait 12 | . 12 Move 673 | 70 603 Hop . | . . Pick Up 37 | 12 25 Fast Attach . | . . Attach 20 | 6 14 Detach 1 | . 1 Swap 18 | 3 15 Drop 4 | . 4 Fire 91 | . 91 Melee . | . . Ram . | . . Kick . | . . Crush 1 | . 1 Escape Stasis . | . . Rewire . | . . Trap . | . . Miscellaneous . | . . Route ------- -11/Scrapyard -10/Materials (discovered 2 exits: [*Mat] / [*Min]) History --------- Turn | Location | Event 18 | -11/Scrapyard | Discovered new exit (range 15) 92 | -11/Scrapyard | Entered Materials 279 | -10/Materials | Discovered new exit (range 5) 313 | -10/Materials | Build established: Mutant 390 | -10/Materials | Discovered new exit (range 11) 524 | -10/Materials | Lost 5 parts (1p2n2w) 1095 | -10/Materials | Core integrity fell below 50% 1135 | -10/Materials | Lost 6 parts (1p2n3w) 1382 | -10/Materials | Core integrity fell below 20% 1410 | -10/Materials | Destroyed by S-10 Pest with Light Assault Rifle Last Messages --------------- G-34 Mercenary destroyed. Switching to secondary target: G-34 Mercenary. G-34 Mercenary destroyed. Acquired 47 matter. Acquired 12 matter. Acquired Sml. Laser. Acquired Lgt. Treads. Acquired Sensor Array. R-06 Scavenger collects Heat Sink. Acquired 15 matter. R-06 Scavenger destroyed. Acquired 86 matter. Lgt. Ion Engine destroyed. Integrated Corrupted Flight Unit (+1). Complication: Sml. Laser rejected. Complication: Flight Unit rejected. S-10 Pest destroyed. K-01 Serf collects debris. Flight Unit destroyed. K-01 Serf collects debris. Map ----- +----------------------------------------------------+ | ??########### """ #^ # """ #? | | ??# # """ +^ + """ #? | | ??# # # # """ #? | | ??# # # # #? | | ??# # *# ########? | | ??# ######## #???? | | ??# ###????# < #???? | | ??# #??????# #???? | | ??# #??????##### ###???? | | #######+################ #?????? | | + # ## #?????? | | """ # # """ """ ## #?????? | | """ + + """ """ ## #?????? | | """ # # """ """ ## #?????? | | """ # # ## ##????? | | """ # #########+##### ##????? | | # #??###??# #??## #####?? | | ###### #???????# #??## #?? | | ?????# #?????### ######## #?? | | ????# ####### #??### #?? | | ##### % #????# #?? | | %+ % T ###### #?? | | ##### s[[k #?? | | ????##+#####+## !=%= #?? | | ?????# ### ####%= #?? | | ?????# ### #??#[@= #?? | | ?????# ! ##T #??# #?? | | ?????# """ ### #??# #?? | | ?????#""""" ### ##?# % ""# | | ?????#""""" ## ### * T"# | | ?????#""""" # ## ""# | | ?????# """ %# # ### | | ?????# # < # #?? | | ?????########## # #?? | | ??????????????#"" ""## #?? | | ??????????????##" ||"### #?? | | ???????????????##"""##?# #?? | | ????????????????#####??#######?? | | ???????????????????????????????? | | ???????????????????????????????? | | ???????????????????????????????? | | ???????????????????????????????? | | | | | | | | | | | | | | | | | +----------------------------------------------------+ Best States ------------- Heat Dissipation 25 Energy Generation 14 Energy Capacity 410 Matter Stores 300 Matter Capacity 300 Sight Range 16 Robot Scan Range 14 Terrain Scan Density 10 Evasion (%) 42 Recoil Reduction 2 Item Schematics ----------------- None Robot Schematics ------------------ None Fabricated ------------ Nothing Alien Tech Used ----------------- None Achievements -------------- One Hack Too Far Challenges ------------ None Game ------ Seed ConstructSlugFragment Manual? 1 Play Time 00:19:37 Cumulative 1.1 hours Start 2024.07.02 @ 16:07:09 End 2024.07.02 @ 16:25:47 Sessions 1 Manual Loads 0 Difficulty Rogue Special Mode None Game No. 2 Rogue 2 Adventurer 0 Explorer 0 Win Type - Total 0 Types 0/0/0/0/0/0/0/0/0 Lore% 0 Gallery% 2 Achievement% 2 Wizard Run 0 Options --------- Layout 1 ASCII 0 Keyboard 0 Movement Numpad Keybinds 0 Fullscreen 1 Font 24/Smallcaps Map View 50x35 Zoom Use 0% Tactical HUD 0 Map Filters NONE Filters NONE Steam 1 RUN: 1cc504b4-6080-406f-8ecb-d6f5e0e54c62